Workbook

Sheet день1
A1: Прием | B1: № | C1: Наименование блюда | D1: Масса | E1: Энергетичес- | G1: Пищевые | I1: Витамин
A2: пищи | B2: рецептуры | D2: порции, | E2: кая ценность, | F2: Белки, | G2: Жиры, | H2: Углеводы, | I2: С
D3: гр. | E3: (ккал) | F3: гр. | G3: гр. | H3: гр
D4: 1 день
A5: Завтрак | B5: 39 | C5: Яйцо отварное | D5: 40.0 | E5: 57.00 | F5: 4.78 | G5: 4.05 | H5: 0.25 | I5: 0
B6: 28 | C6: Суп молочный рисовый | D6: 200.0 | E6: 149.00 | F6: 4.95 | G6: 6.07 | H6: 18.63 | I6: 0.36
B7: 116 | C7: Сыр порциями | D7: 10.3 | E7: 35.00 | F7: 2.68 | G7: 2.73 | I7: 0.16
B8: 115 | C8: Масло сливочное порциями | D8: 5.0 | E8: 35.00 | F8: 0.04 | G8: 3.90 | H8: 0.05 | I8: 0.14
B9: 79 | C9: Какао с молоком | D9: 200.0 | E9: 178.00 | F9: 4.56 | G9: 4.44 | H9: 29.99 | I9: 0.32
B10: 136 | C10: Хлеб пшеничный | D10: 25.0 | E10: 49.22 | F10: 2.13 | G10: 0.40 | H10: 9.25 | I10: 0
B11: 100 | C11: Яблоки свежие | D11: 268.0 | E11: 119.00 | F11: 1.07 | G11: 1.07 | H11: 26.26 | I11: 34.8
C12: Итого за завтрак | E12: =E5+E6+E7+E8+E9+E10+E11 -> 622.22 | F12: =F5+F6+F7+F8+F9+F10+F11 -> 20.21 | G12: 22.66 | H12: 84.43 | I12: 35.78
A13: Обед | B13: 4 | C13: Овощи тушеные | D13: 60.0 | E13: 82.00 | F13: 0.99 | G13: 6.05 | H13: 5.79 | I13: 17.23
B14: 22 | C14: Рассольник на м/к бульоне со сметаной | D14: 200.0 | E14: 136.00 | F14: 5.25 | G14: 7.14 | H14: 12.79 | I14: 5.37
B15: 56 | C15: Макаронные изделия отварные | D15: 150.0 | E15: 218.00 | F15: 6.18 | G15: 5.65 | H15: 35.62 | I15: 0.05
B16: 162 | C16: Котлеты рыбные | D16: 80.0 | E16: 118.00 | F16: 10.93 | G16: 5.92 | H16: 5.21 | I16: 0.3
B17: 89 | C17: Компот из смеси сухофруктов | D17: 200.0 | E17: 54.00 | H17: 13.62 | I17: 0
B18: 135 | C18: Хлеб ржаной порциями | D18: 30.0 | E18: 52.10 | F18: 1.98 | G18: 0.36 | H18: 10.30 | I18: 0
B19: 136 | C19: Хлеб пшеничный порциями | D19: 25.0 | E19: 49.22 | F19: 2.13 | G19: 0.40 | H19: 9.25 | I19: 0
B20: 144 | C20: Пряники | D20: 25.8 | E20: 90.30 | F20: 1.23 | G20: 0.72 | H20: 20.05 | I20: 0
C21: Итого за обед | E21: =E13+E14+E15+E16+E17+E18+E20 -> 750.40 | F21: =F13+F14+F15+F16+F17+F18+F20 -> 26.56 | G21: =G13+G14+G15+G16+G17+G18+G20 -> 25.84 | H21: =H13+H14+H15+H16+H17+H18+H20 -> 103.38 | I21: =I13+I14+I15+I16+I17+I18+I20 -> 22.95
A22: Полдник | B22: 171, 159 | C22: Оладьи с молоком сгущенным | D22: 120.0 | E22: 306.00 | F22: 7.37 | G22: 12.58 | H22: 40.94 | I22: 0.18
B23: 153 | C23: Сок натуральный | D23: 206.0 | E23: 87.60 | F23: 0.77 | H23: 21.19 | I23: 1.65
C24: Итого за полдник | E24: =E22+E23 -> 393.60 | F24: =F22+F23 -> 8.14 | G24: =G22+G23 -> 12.58 | H24: =H22+H23 -> 62.13 | I24: =I22+I23 -> 1.83
A25: Ужин | B25: 16 | C25: Салат из свеклыс солеными огурцами | D25: 60.0 | E25: 76.00 | F25: 0.78 | G25: 6.05 | H25: 4.63 | I25: 3.42
B26: 63 | C26: Жаркое по домашнему | D26: 200.0 | E26: 320.00 | F26: 20.03 | G26: 18.96 | H26: 17.25 | I26: 9.5
B27: 98 | C27: Чай с сахаром и молоком | D27: 180.0 | E27: 80.00 | F27: 1.26 | G27: 1.44 | H27: 15.61 | I27: 0.5
B28: 135 | C28: Хлеб ржаной | D28: 31.8 | E28: 55.20 | F28: 2.10 | G28: 0.39 | H28: 10.84 | I28: 0
B29: 136 | C29: Хлеб пшеничный | D29: 25.0 | E29: 49.22 | F29: 2.13 | G29: 0.40 | H29: 9.25 | I29: 0
C30: Итого за ужин | E30: =E25+E26+E27+E28+E29 -> 580.42 | F30: =F25+F26+F27+F28+F29 -> 26.30 | G30: =G25+G26+G27+G28+G29 -> 27.24 | H30: =H25+H26+H27+H28+H29 -> 57.58 | I30: =I25+I26+I27+I28+I29 -> 13.42
A31: 2-й Ужин | B31: 84 | C31: Кефир с сахаром | D31: 209.0 | E31: 173.00 | F31: 5.60 | G31: 6.40 | H31: 23.17 | I31: 1.4
B32: 136 | C32: Хлеб пшеничный порциями | D32: 25.0 | E32: 49.22 | F32: 2.13 | G32: 0.40 | H32: 9.25 | I32: 0
C33: Итого за ужин | E33: =E31+E32 -> 222.22 | F33: =F31+F32 -> 7.73 | G33: =G31+G32 -> 6.80 | H33: =H31+H32 -> 32.42 | I33: =I31+I32 -> 1.40
C34: Всего за день | E34: =E12+E21+E24+E30+E33 -> 2568.86 | F34: =F12+F21+F24+F30+F33 -> 88.94 | G34: =G12+G21+G24+G30+G33 -> 95.12 | H34: =H12+H21+H24+H30+H33 -> 339.94 | I34: =I12+I21+I24+I30+I33 -> 75.38

Sheet день2
A1: Прием | B1: № | C1: Наименование блюда | D1: Масса | E1: Энергетичес- | G1: Пищевые | I1: Витамин
A2: пищи | B2: рецептуры | D2: порции, | E2: кая ценность, | F2: Белки, | G2: Жиры, | H2: Углеводы, | I2: С
D3: гр. | E3: (ккал) | F3: гр. | G3: гр. | H3: гр
D4: 2 день
A5: Завтрак | B5: 185 | C5: Суп молочный с овсянными хлопьями | D5: 200.0 | E5: 135.00 | F5: 4.62 | G5: 5.45 | H5: 16.94 | I5: 0.73
B6: 169 | C6: Сосиски отварные | D6: 50.0 | E6: 94.00 | F6: 4.57 | G6: 8.25 | H6: 0.35 | I6: 0.02
B7: 115 | C7: Масло сливочное порциями | D7: 5.0 | E7: 35.00 | F7: 0.04 | G7: 3.90 | H7: 0.05 | I7: 0.14
B8: 205 | C8: Какао с молоком | D8: 200.0 | E8: 178.00 | F8: 4.56 | G8: 4.44 | H8: 29.99 | I8: 0.68
B9: 136 | C9: Хлеб пшеничный | D9: 25.0 | E9: 49.22 | F9: 2.13 | G9: 0.40 | H9: 9.25 | I9: 0
B10: 103 | C10: Апельсины свежие | D10: 201.0 | E10: 76.30 | F10: 1.81 | G10: 0.40 | H10: 16.28 | I10: 120.6
C11: Итого за завтрак | E11: =SUM(E5:E10) -> 567.52 | F11: =SUM(F5:F10) -> 17.73 | G11: =SUM(G5:G10) -> 22.84 | H11: =SUM(H5:H10) -> 72.86 | I11: =SUM(I5:I10) -> 122.17
A12: Обед | B12: 18 | C12: Салат из свеклы с яблоками | D12: 60.0 | E12: 59.00 | F12: 0.68 | G12: 3.10 | H12: 7.03 | I12: 1.6
B13: 129 | C13: Щи из свежей капусты на м/к бульоне со сметаной | D13: 200.0 | E13: 113.00 | F13: 5.13 | G13: 7.00 | H13: 7.41 | I13: 10.33
B14: 130 | C14: Пюре из гороха | D14: 150.0 | E14: 232.20 | F14: 17.25 | G14: 1.20 | H14: 38.10 | I14: 0.02
B15: 62 | C15: Гуляш из говядины | D15: 80.0 | E15: 188.00 | F15: 13.59 | G15: 13.41 | H15: 3.15 | I15: 1.34
B16: 96 | C16: Компот из яблок свежих | D16: 200.0 | E16: 61.00 | F16: 0.16 | H16: 14.99 | I16: 3.6
B17: 135 | C17: Хлеб ржаной порциями | D17: 30.0 | E17: 52.10 | F17: 1.98 | G17: 0.36 | H17: 10.30 | I17: 0
B18: 136 | C18: Хлеб пшеничный порциями | D18: 25.0 | E18: 49.22 | F18: 2.13 | G18: 0.40 | H18: 9.25 | I18: 0
B19: 143 | C19: Печенье | D19: 25.8 | E19: 112.50 | F19: 1.94 | G19: 3.04 | H19: 19.20 | I19: 0
C20: Итого за обед | E20: =SUM(E12:E19) -> 867.02 | F20: =SUM(F12:F19) -> 42.86 | G20: =SUM(G12:G19) -> 28.51 | H20: =SUM(H12:H19) -> 109.43 | I20: =SUM(I12:I19) -> 16.89
A21: Полдник | B21: 105 | C21: Булочка домашняя | D21: 100.0 | E21: 393.00 | F21: 7.61 | G21: 12.73 | H21: 62.12 | I21: 0
B22: 153 | C22: Сок натуральный | D22: 206.0 | E22: 87.60 | F22: 0.77 | H22: 21.19 | I22: 1.65
C23: Итого за полдник | E23: =SUM(E21:E22) -> 480.60 | F23: =SUM(F21:F22) -> 8.38 | G23: =SUM(G21:G22) -> 12.73 | H23: =SUM(H21:H22) -> 83.31 | I23: =SUM(I21:I22) -> 1.65
A24: Ужин | B24: 20 | C24: Сельдь с гарниром | D24: 60.0 | E24: 104.00 | F24: 3.07 | G24: 7.37 | H24: 6.41 | I24: 0
B25: 193 | C25: Голубцы ленивые с томатом | D25: 200.0 | E25: 269.00 | F25: 12.67 | G25: 19.76 | H25: 10.05 | I25: 21.6
B26: 204 | C26: Чай с сахаром | D26: 200.0 | E26: 41.00 | H26: 10.26 | I26: 0
B27: 135 | C27: Хлеб ржаной | D27: 31.8 | E27: 55.20 | F27: 2.10 | G27: 0.39 | H27: 10.84 | I27: 0
B28: 136 | C28: Хлеб пшеничный | D28: 25.0 | E28: 49.22 | F28: 2.13 | G28: 0.40 | H28: 9.25 | I28: 0
C29: Итого за ужин | E29: =SUM(E24:E28) -> 518.42 | F29: =SUM(F24:F28) -> 19.97 | G29: =SUM(G24:G28) -> 27.92 | H29: =SUM(H24:H28) -> 46.81 | I29: =SUM(I24:I28) -> 21.60
A30: 2-й Ужин | B30: 84 | C30: Ряженка с сахаром | D30: 209.0 | E30: 173.00 | F30: 5.60 | G30: 6.40 | H30: 23.17 | I30: 1.4
B31: 136 | C31: Хлеб пшеничный порциями | D31: 25.0 | E31: 49.22 | F31: 2.13 | G31: 0.40 | H31: 9.25 | I31: 0
C32: Итого за ужин | E32: =SUM(E30:E31) -> 222.22 | F32: =SUM(F30:F31) -> 7.73 | G32: =SUM(G30:G31) -> 6.80 | H32: =SUM(H30:H31) -> 32.42 | I32: =SUM(I30:I31) -> 1.40
C33: Всего за день | E33: =E11+E20+E23+E29+E32 -> 2655.78 | F33: =F11+F20+F23+F29+F32 -> 96.67 | G33: =G11+G20+G23+G29+G32 -> 98.80 | H33: =H11+H20+H23+H29+H32 -> 344.83 | I33: =I11+I20+I23+I29+I32 -> 163.71

Sheet день3
A1: Прием | B1: № | C1: Наименование блюда | D1: Масса | E1: Энергетичес- | G1: Пищевые | I1: Витамин
A2: пищи | B2: рецептуры | D2: порции, | E2: кая ценность, | F2: Белки, | G2: Жиры, | H2: Углеводы, | I2: С
D3: гр. | E3: (ккал) | F3: гр. | G3: гр. | H3: гр
D4: 3 день
A5: Завтрак | B5: 132 | C5: Омлет | D5: 115 | E5: 179.00 | F5: 9.67 | G5: 14.48 | H5: 2.44 | I5: 0.24
B6: 116 | C6: Сыр порциями | D6: 20.6 | E6: 70.00 | F6: 5.36 | G6: 5.46 | I6: 0.33
B7: 115 | C7: Масло сливочное порциями | D7: 5.0 | E7: 35.00 | F7: 0.04 | G7: 3.90 | H7: 0.05 | I7: 0.14
B8: 205 | C8: Какао с молоком | D8: 200.0 | E8: 178.00 | F8: 4.56 | G8: 4.44 | H8: 29.99 | I8: 0.68
B9: 136 | C9: Хлеб пшеничный | D9: 25.0 | E9: 49.22 | F9: 2.13 | G9: 0.40 | H9: 9.25 | I9: 0
B10: 101 | C10: Груши свежие | D10: 242.0 | E10: 107.46 | F10: 0.97 | G10: 0.97 | H10: 23.70 | I10: 12.1
C11: Итого за завтрак | E11: =SUM(E5:E10) -> 618.68 | F11: =SUM(F5:F10) -> 22.73 | G11: =SUM(G5:G10) -> 29.65 | H11: =SUM(H5:H10) -> 65.43 | I11: =SUM(I5:I10) -> 13.49
A12: Обед | B12: 9 | C12: Салат картофельный с огурцами солеными | D12: 60.0 | E12: 77.00 | F12: 0.54 | G12: 6.10 | H12: 4.94 | I12: 10.24
B13: 21 | C13: Борщ на м/к бульоне со сметаной | D13: 200.0 | E13: 116.00 | F13: 5.23 | G13: 6.72 | H13: 8.63 | I13: 5.77
B14: 59 | C14: Картофельное пюре | D14: 150.0 | E14: 145.00 | F14: 3.01 | G14: 5.33 | H14: 21.20 | I14: 6.41
B15: 151 | C15: Рыба, припущенная в молоке | D15: 110.0 | E15: 150.00 | F15: 16.01 | G15: 8.10 | H15: 3.30 | I15: 1.45
B16: 87 | C16: Кисель | D16: 200.0 | E16: 36.00 | H16: 9.08 | I16: 0
B17: 135 | C17: Хлеб ржаной порциями | D17: 30.0 | E17: 52.10 | F17: 1.98 | G17: 0.36 | H17: 10.30 | I17: 0
B18: 136 | C18: Хлеб пшеничный порциями | D18: 25.0 | E18: 49.22 | F18: 2.13 | G18: 0.40 | H18: 9.25 | I18: 0
B19: 145 | C19: Вафли | D19: 25.8 | E19: 90.30 | F19: 0.82 | G19: 0.72 | H19: 20.67 | I19: 0
C20: Итого за обед | E20: =SUM(E12:E19) -> 715.62 | F20: =SUM(F12:F19) -> 29.72 | G20: =SUM(G12:G19) -> 27.73 | H20: =SUM(H12:H19) -> 87.37 | I20: =SUM(I12:I19) -> 23.87
A21: Полдник | B21: 45, 159 | C21: Сырники из творога запеченные с молоком сгущенным | D21: 100,0 / 20,0 | E21: 181.00 | F21: 14.46 | G21: 3.74 | H21: 22.49 | I21: 0.29
B22: 153 | C22: Сок натуральный | D22: 206.0 | E22: 87.60 | F22: 0.77 | H22: 21.19 | I22: 1.65
C23: Итого за полдник | E23: =SUM(E21:E22) -> 268.60 | F23: =SUM(F21:F22) -> 15.23 | G23: =SUM(G21:G22) -> 3.74 | H23: =SUM(H21:H22) -> 43.68 | I23: =SUM(I21:I22) -> 1.94
A24: Ужин | B24: 72 | C24: Салат овощной с маслом растительным | D24: 60.0 | E24: 84.00 | F24: 3.35 | G24: 4.57 | H24: 7.40 | I24: 3.91
B25: 176 | C25: Рагу из овощей | D25: 150.0 | E25: 188.00 | F25: 3.49 | G25: 12.03 | H25: 16.53 | I25: 13.61
B26: 164 | C26: Котлеты из говядины | D26: 80.0 | E26: 235.00 | F26: 13.58 | G26: 17.65 | H26: 5.54 | I26: 0.09
B27: 204 | C27: Чай с сахаром | D27: 200.0 | E27: 41.00 | H27: 10.26 | I27: 0
B28: 135 | C28: Хлеб ржаной | D28: 31.8 | E28: 55.20 | F28: 2.10 | G28: 0.39 | H28: 10.84 | I28: 0
B29: 136 | C29: Хлеб пшеничный | D29: 25.0 | E29: 49.22 | F29: 2.13 | G29: 0.40 | H29: 9.25 | I29: 0
C30: Итого за ужин | E30: =E24+E25+E26+E27+E28+E29 -> 652.42 | F30: =F24+F25+F26+F27+F28+F29 -> 24.65 | G30: =G24+G25+G26+G27+G28+G29 -> 35.04 | H30: =H24+H25+H26+H27+H28+H29 -> 59.82 | I30: =I24+I25+I26+I27+I28+I29 -> 17.61
A31: 2-й Ужин | B31: 85 | C31: Кефир с сахаром | D31: 210.0 | E31: 173.00 | F31: 5.60 | G31: 6.40 | H31: 23.17 | I31: 1.4
B32: 136 | C32: Хлеб пшеничный порциями | D32: 25.0 | E32: 49.22 | F32: 2.13 | G32: 0.40 | H32: 9.25 | I32: 0
C33: Итого за ужин | E33: =SUM(E31:E32) -> 222.22 | F33: =SUM(F31:F32) -> 7.73 | G33: 6.80 | H33: 32.42 | I33: 1.40
C34: Всего за день | E34: =E11+E20+E23+E30+E33 -> 2477.54 | F34: =F11+F20+F23+F30+F33 -> 100.06 | G34: =G11+G20+G23+G30+G33 -> 102.96 | H34: =H11+H20+H23+H30+H33 -> 288.72 | I34: =I11+I20+I23+I30+I33 -> 58.31

Sheet день4
A1: Прием | B1: № | C1: Наименование блюда | D1: Масса | E1: Энергетичес- | G1: Пищевые | I1: Витамин
A2: пищи | B2: рецептуры | D2: порции, | E2: кая ценность, | F2: Белки, | G2: Жиры, | H2: Углеводы, | I2: С
D3: гр. | E3: (ккал) | F3: гр. | G3: гр. | H3: гр
D4: 4 день
A5: Завтрак | B5: 139 | C5: Суп молочный с пшенной крупой | D5: 200.0 | E5: 135.00 | F5: 4.62 | G5: 5.45 | H5: 16.94 | I5: 0.73
B6: 116 | C6: Сыр порциями | D6: 20.6 | E6: 70.00 | F6: 5.36 | G6: 5.46 | I6: 0.33
B7: 115 | C7: Масло сливочное порциями | D7: 5.0 | E7: 35.00 | F7: 0.04 | G7: 3.90 | H7: 0.05 | I7: 0.14
B8: 205 | C8: Какао с молоком | D8: 200.0 | E8: 178.00 | F8: 4.56 | G8: 4.44 | H8: 29.99 | I8: 0.68
B9: 136 | C9: Хлеб пшеничный | D9: 25.0 | E9: 49.22 | F9: 2.13 | G9: 0.40 | H9: 9.25 | I9: 0
B10: 102 | C10: Бананы свежие | D10: 206.0 | E10: 90.70 | F10: 0.82 | G10: 0.82 | H10: 20.18 | I10: 20.6
C11: Итого за завтрак | E11: =SUM(E5:E10) -> 557.92 | F11: =SUM(F5:F10) -> 17.53 | G11: =SUM(G5:G10) -> 20.47 | H11: =SUM(H5:H10) -> 76.41 | I11: =SUM(I5:I10) -> 22.48
A12: Обед | B12: 1 | C12: Винегрет овощной | D12: 60.0 | E12: 76.00 | F12: 0.75 | G12: 6.08 | H12: 4.51 | I12: 1.41
B13: 51 | C13: Суп на м/к бульоне с крупой перловой | D13: 200.0 | E13: 127.00 | F13: 4.88 | G13: 7.81 | H13: 9.23 | I13: 2.09
B14: 58 | C14: Капуста тушенная | D14: 150.0 | E14: 127.00 | F14: 3.69 | G14: 4.27 | H14: 18.36 | I14: 71.32
B15: 134 | C15: Куры отварные | D15: 80.0 | E15: 235.00 | F15: 13.58 | G15: 17.65 | H15: 5.54 | I15: 0.8
B16: 96 | C16: Компот из яблок свежих | D16: 200.0 | E16: 71.00 | F16: 0.15 | G16: 0.14 | H16: 17.19 | I16: 3.6
B17: 135 | C17: Хлеб ржаной порциями | D17: 30.0 | E17: 52.10 | F17: 1.98 | G17: 0.36 | H17: 10.30 | I17: 0
B18: 136 | C18: Хлеб пшеничный порциями | D18: 25.0 | E18: 49.22 | F18: 2.13 | G18: 0.40 | H18: 9.25 | I18: 0
B19: 144 | C19: Пряники | D19: 25.8 | E19: 90.30 | F19: 1.23 | G19: 0.72 | H19: 20.05 | I19: 0
C20: Итого за обед | E20: =SUM(E12:E19) -> 827.62 | F20: =SUM(F12:F19) -> 28.39 | G20: =SUM(G12:G19) -> 37.43 | H20: =SUM(H12:H19) -> 94.43 | I20: =SUM(I12:I19) -> 79.22
A21: Полдник | B21: 172, 157 | C21: Оладьи с повидлом | D21: 120.0 | E21: 306.00 | F21: 7.37 | G21: 12.58 | H21: 40.94 | I21: 0.18
B22: 153 | C22: Сок натуральный | D22: 206.0 | E22: 87.60 | F22: 0.77 | H22: 21.19 | I22: 1.65
C23: Итого за полдник | E23: =SUM(E21:E22) -> 393.60 | F23: =SUM(F21:F22) -> 8.14 | G23: =SUM(G21:G22) -> 12.58 | H23: =SUM(H21:H22) -> 62.13 | I23: =SUM(I21:I22) -> 1.83
A24: Ужин | B24: 2 | C24: Овощи тушеные | D24: 60.0 | E24: 83.00 | F24: 0.68 | G24: 6.08 | H24: 6.42 | I24: 9.99
B25: 76 | C25: Азу | D25: 200.0 | E25: 226.00 | F25: 10.98 | G25: 13.47 | H25: 15.31 | I25: 8.06
B26: 204 | C26: Чай с сахаром | D26: 200.0 | E26: 41.00 | H26: 10.26 | I26: 0
B27: 135 | C27: Хлеб ржаной | D27: 31.8 | E27: 55.20 | F27: 2.10 | G27: 0.39 | H27: 10.84 | I27: 0
B28: 136 | C28: Хлеб пшеничный | D28: 25.0 | E28: 49.22 | F28: 2.13 | G28: 0.40 | H28: 9.25 | I28: 0
C29: Итого за ужин | E29: =SUM(E24:E28) -> 454.42 | F29: =SUM(F24:F28) -> 15.89 | G29: =SUM(G24:G28) -> 20.34 | H29: =SUM(H24:H28) -> 52.08 | I29: =SUM(I24:I28) -> 18.05
A30: 2-й Ужин | B30: 85 | C30: Кефир с сахаром | D30: 210.0 | E30: 173.00 | F30: 5.60 | G30: 6.40 | H30: 23.17 | I30: 1.4
B31: 136 | C31: Хлеб пшеничный порциями | D31: 25.0 | E31: 49.22 | F31: 2.13 | G31: 0.40 | H31: 9.25 | I31: 0
C32: Итого за ужин | E32: =E30+E31 -> 222.22 | F32: =F30+F31 -> 7.73 | G32: =G30+G31 -> 6.80 | H32: =H30+H31 -> 32.42 | I32: =I30+I31 -> 1.40
C33: Всего за день | E33: =E11+E20+E23+E29+E32 -> 2455.78 | F33: =F11+F20+F23+F29+F32 -> 77.68 | G33: =G11+G20+G23+G29+G32 -> 97.62 | H33: =H11+H20+H23+H29+H32 -> 317.47 | I33: =I11+I20+I23+I29+I32 -> 122.98

Sheet день5
A1: Прием | B1: № | C1: Наименование блюда | D1: Масса | E1: Энергетичес- | G1: Пищевые | I1: Витамин
A2: пищи | B2: рецептуры | D2: порции, | E2: кая ценность, | F2: Белки, | G2: Жиры, | H2: Углеводы, | I2: С
D3: гр. | E3: (ккал) | F3: гр. | G3: гр. | H3: гр
D4: 5 день
A5: Завтрак | B5: 160, 159 | C5: Творожная запеканка с молоком сгущенным | D5: 170.0 | E5: 250.00 | F5: 18.40 | G5: 12.14 | H5: 16.89 | I5: 0.35
B6: 116 | C6: Сыр порциями | D6: 10.3 | E6: 35.00 | F6: 2.68 | G6: 2.73 | I6: 0.16
B7: 169 | C7: Сосиски отварные | D7: 50.0 | E7: 94.00 | F7: 4.57 | G7: 8.25 | H7: 0.35 | I7: 0.02
B8: 205 | C8: Какао с молоком | D8: 200.0 | E8: 178.00 | F8: 4.56 | G8: 4.44 | H8: 29.99 | I8: 0.68
B9: 136 | C9: Хлеб пшеничный | D9: 25.0 | E9: 49.22 | F9: 2.13 | G9: 0.40 | H9: 9.25 | I9: 0
B10: 100 | C10: Яблоки свежие | D10: 167.0 | E10: 74.15 | F10: 0.67 | G10: 0.67 | H10: 16.36 | I10: 21.7
C11: Итого за завтрак | E11: =SUM(E5:E10) -> 680.37 | F11: =SUM(F5:F10) -> 33.01 | G11: =SUM(G5:G10) -> 28.63 | H11: =SUM(H5:H10) -> 72.84 | I11: =SUM(I5:I10) -> 22.91
A12: Обед | B12: 19 | C12: Салат картофельный с зеленым горошком | D12: 60.0 | E12: 94.00 | F12: 1.84 | G12: 6.83 | H12: 6.27 | I12: 6.72
B13: 23 | C13: Суп на м/к бульоне с бобовыми | D13: 200.0 | E13: 145.00 | F13: 7.91 | G13: 6.27 | H13: 14.24 | I13: 3.68
B14: 56 | C14: Макаронные изделия отварные | D14: 150.0 | E14: 218.00 | F14: 6.18 | G14: 5.65 | H14: 35.62 | I14: 0.05
B15: 162 | C15: Котлеты рыбные | D15: 80.0 | E15: 118.00 | F15: 10.93 | G15: 5.92 | H15: 5.21 | I15: 0.44
B16: 88 | C16: Компот из апельсинов и яблок свежих | D16: 200.0 | E16: 99.00 | F16: 0.45 | G16: 0.18 | H16: 23.79 | I16: 29.4
B17: 135 | C17: Хлеб ржаной порциями | D17: 30.0 | E17: 52.10 | F17: 1.98 | G17: 0.36 | H17: 10.30 | I17: 0
B18: 136 | C18: Хлеб пшеничный порциями | D18: 25.0 | E18: 49.22 | F18: 2.13 | G18: 0.40 | H18: 9.25 | I18: 0
B19: 143 | C19: Печенье | D19: 25.8 | E19: 112.50 | F19: 1.94 | G19: 3.04 | H19: 19.20 | I19: 0
C20: Итого за обед | E20: =SUM(E12:E19) -> 887.82 | F20: =SUM(F12:F19) -> 33.36 | G20: =SUM(G12:G19) -> 28.65 | H20: =SUM(H12:H19) -> 123.88 | I20: =SUM(I12:I19) -> 40.29
A21: Полдник | B21: 109 | C21: Слойка | D21: 100.0 | E21: 358.00 | F21: 7.75 | G21: 8.76 | H21: 62.05 | I21: 0.08
B22: 153 | C22: Сок натуральный | D22: 206.0 | E22: 87.60 | F22: 0.77 | H22: 21.19 | I22: 1.65
C23: Итого за полдник | E23: =SUM(E21:E22) -> 445.60 | F23: =SUM(F21:F22) -> 8.52 | G23: =SUM(G21:G22) -> 8.76 | H23: =SUM(H21:H22) -> 83.24 | I23: =SUM(I21:I22) -> 1.73
A24: Ужин | B24: 18 | C24: Салат из свеклы с яблоками | D24: 60.0 | E24: 59.00 | F24: 0.68 | G24: 3.10 | H24: 7.03 | I24: 1.6
B25: 59 | C25: Картофельное пюре | D25: 150.0 | E25: 145.00 | F25: 3.01 | G25: 5.33 | H25: 21.20 | I25: 6.41
B26: 134 | C26: Куры отварные | D26: 80.0 | E26: 235.00 | F26: 13.58 | G26: 17.65 | H26: 5.54 | I26: 0.8
B27: 204 | C27: Чай с сахаром | D27: 200.0 | E27: 41.00 | H27: 10.26 | I27: 0
B28: 135 | C28: Хлеб ржаной | D28: 31.8 | E28: 55.20 | F28: 2.10 | G28: 0.39 | H28: 10.84 | I28: 0
B29: 136 | C29: Хлеб пшеничный | D29: 25.0 | E29: 49.22 | F29: 2.13 | G29: 0.40 | H29: 9.25 | I29: 0
C30: Итого за ужин | E30: =SUM(E24:E29) -> 584.42 | F30: =SUM(F24:F29) -> 21.50 | G30: =SUM(G24:G29) -> 26.87 | H30: =SUM(H24:H29) -> 64.12 | I30: =SUM(I24:I29) -> 8.81
A31: 2-й Ужин | B31: 84 | C31: Ряженка с сахаром | D31: 209.0 | E31: 173.00 | F31: 5.60 | G31: 6.40 | H31: 23.17 | I31: 1.4
B32: 136 | C32: Хлеб пшеничный порциями | D32: 25.0 | E32: 49.22 | F32: 2.13 | G32: 0.40 | H32: 9.25 | I32: 0
C33: Итого за ужин | E33: =SUM(E31:E32) -> 222.22 | F33: =SUM(F31:F32) -> 7.73 | G33: =SUM(G31:G32) -> 6.80 | H33: =SUM(H31:H32) -> 32.42 | I33: =SUM(I31:I32) -> 1.40
C34: Всего за день | E34: =E11+E20+E23+E30+E33 -> 2820.43 | F34: =F11+F20+F23+F30+F33 -> 104.12 | G34: =G11+G20+G23+G30+G33 -> 99.71 | H34: =H11+H20+H23+H30+H33 -> 376.50 | I34: =I11+I20+I23+I30+I33 -> 75.14

Sheet день6
A1: Прием | B1: № | C1: Наименование блюда | D1: Масса | E1: Энергетичес- | G1: Пищевые | I1: Витамин
A2: пищи | B2: рецептуры | D2: порции, | E2: кая ценность, | F2: Белки, | G2: Жиры, | H2: Углеводы, | I2: С
D3: гр. | E3: (ккал) | F3: гр. | G3: гр. | H3: гр
D4: 6 день
A5: Завтрак | B5: 186 | C5: Суп молочный с пшеничной крупой | D5: 200.0 | E5: 135.00 | F5: 4.62 | G5: 5.45 | H5: 16.94 | I5: 0.73
B6: 39 | C6: Яйцо отварное | D6: 40.0 | E6: 57.00 | F6: 4.78 | G6: 4.05 | H6: 0.25 | I6: 0
B7: 115 | C7: Масло сливочное порциями | D7: 5.0 | E7: 35.00 | F7: 0.04 | G7: 3.90 | H7: 0.05 | I7: 0.14
B8: 205 | C8: Какао с молоком | D8: 200.0 | E8: 178.00 | F8: 4.56 | G8: 4.44 | H8: 29.99 | I8: 0.68
B9: 136 | C9: Хлеб пшеничный | D9: 25.0 | E9: 49.22 | F9: 2.13 | G9: 0.40 | H9: 9.25 | I9: 0
B10: 101 | C10: Груши свежие | D10: 246.0 | E10: 119.00 | F10: 1.07 | G10: 1.07 | H10: 26.25 | I10: 13.4
C11: Итого за завтрак | E11: =SUM(E5:E10) -> 573.22 | F11: =SUM(F5:F10) -> 17.20 | G11: =SUM(G5:G10) -> 19.31 | H11: =SUM(H5:H10) -> 82.73 | I11: =SUM(I5:I10) -> 14.95
A12: Обед | B12: 20 | C12: Сельдь с гарниром | D12: 60.0 | E12: 104.00 | F12: 3.07 | G12: 7.37 | H12: 6.41 | I12: 0
B13: 125 | C13: Суп на м/к бульоне с крупой рис | D13: 200.0 | E13: 127.00 | F13: 4.88 | G13: 7.81 | H13: 9.23 | I13: 2.09
B14: 202 | C14: Запеканка капустная | D14: 155.0 | E14: 207.00 | F14: 6.04 | G14: 11.59 | H14: 19.63 | I14: 28.32
B15: 203 | C15: Куры в соусе с томатом | D15: 80.0 | E15: 320.00 | F15: 21.57 | G15: 24.59 | H15: 3.13 | I15: 0.95
B16: 87 | C16: Кисель | D16: 200.0 | E16: 116.00 | F16: 1.36 | H16: 29.02 | I16: 0
B17: 135 | C17: Хлеб ржаной порциями | D17: 30.0 | E17: 52.10 | F17: 1.98 | G17: 0.36 | H17: 10.30 | I17: 0
B18: 136 | C18: Хлеб пшеничный порциями | D18: 25.0 | E18: 49.22 | F18: 2.13 | G18: 0.40 | H18: 9.25 | I18: 0
B19: 144 | C19: Пряники | D19: 25.8 | E19: 90.30 | F19: 1.23 | G19: 0.72 | H19: 20.05 | I19: 0
C20: Итого за обед | E20: =SUM(E12:E19) -> 1065.62 | F20: =SUM(F12:F19) -> 42.26 | G20: =SUM(G12:G19) -> 52.84 | H20: =SUM(H12:H19) -> 107.02 | I20: =SUM(I12:I19) -> 31.36
A21: Полдник | B21: 184, 159 | C21: Пудинг из творога с молоком сгущенным | D21: 120.0 | E21: 223.86 | F21: 13.56 | G21: 8.54 | H21: 23.25 | I21: 0.15
B22: 153 | C22: Сок натуральный | D22: 206.0 | E22: 87.60 | F22: 0.77 | H22: 21.19 | I22: 1.65
C23: Итого за полдник | E23: =SUM(E21:E22) -> 311.46 | F23: =SUM(F21:F22) -> 14.33 | G23: =SUM(G21:G22) -> 8.54 | H23: =SUM(H21:H22) -> 44.44 | I23: =SUM(I21:I22) -> 1.80
A24: Ужин | B24: 4 | C24: Венегрет | D24: 60.0 | E24: 82.00 | F24: 0.99 | G24: 6.05 | H24: 5.79 | I24: 17.23
B25: 63 | C25: Жаркое по домашнему | D25: 200.0 | E25: 320.00 | F25: 20.03 | G25: 18.96 | H25: 17.25 | I25: 21.37
B26: 204 | C26: Чай с сахаром | D26: 200.0 | E26: 41.00 | H26: 10.26 | I26: 0
B27: 135 | C27: Хлеб ржаной | D27: 31.8 | E27: 55.20 | F27: 2.10 | G27: 0.39 | H27: 10.84 | I27: 0
B28: 136 | C28: Хлеб пшеничный | D28: 25.0 | E28: 49.22 | F28: 2.13 | G28: 0.40 | H28: 9.25 | I28: 0
C29: Итого за ужин | E29: =SUM(E24:E28) -> 547.42 | F29: =SUM(F24:F28) -> 25.25 | G29: =SUM(G24:G28) -> 25.80 | H29: =SUM(H24:H28) -> 53.39 | I29: =SUM(I24:I28) -> 38.60
A30: 2-й Ужин | B30: 85 | C30: Ряженка с сахаром | D30: 210.0 | E30: 173.00 | F30: 5.60 | G30: 6.40 | H30: 23.17 | I30: 1.4
B31: 136 | C31: Хлеб пшеничный порциями | D31: 25.0 | E31: 49.22 | F31: 2.13 | G31: 0.40 | H31: 9.25 | I31: 0
C32: Итого за ужин | E32: =E30+E31 -> 222.22 | F32: =F30+F31 -> 7.73 | G32: =G30+G31 -> 6.80 | H32: =H30+H31 -> 32.42 | I32: =I30+I31 -> 1.40
C33: Всего за день | E33: =E11+E20+E23+E29+E32 -> 2719.94 | F33: =F11+F20+F23+F29+F32 -> 106.77 | G33: =G11+G20+G23+G29+G32 -> 113.29 | H33: =H11+H20+H23+H29+H32 -> 320.00 | I33: =I11+I20+I23+I29+I32 -> 88.11

Sheet день7
A1: Прием | B1: № | C1: Наименование блюда | D1: Масса | E1: Энергетичес- | G1: Пищевые | I1: Витамин
A2: пищи | B2: рецептуры | D2: порции, | E2: кая ценность, | F2: Белки, | G2: Жиры, | H2: Углеводы, | I2: С
D3: гр. | E3: (ккал) | F3: гр. | G3: гр. | H3: гр
D4: 7 день
A5: Завтрак | B5: 32 | C5: Каша манная молочная | D5: 206.0 | E5: 197.00 | F5: 5.86 | G5: 6.72 | H5: 28.32 | I5: 0.3
B6: 116 | C6: Сыр порциями | D6: 20.6 | E6: 70.00 | F6: 5.36 | G6: 5.46 | I6: 0.33
B7: 115 | C7: Масло сливочное порциями | D7: 5.0 | E7: 35.00 | F7: 0.04 | G7: 3.90 | H7: 0.05 | I7: 0.14
B8: 205 | C8: Какао с молоком | D8: 200.0 | E8: 178.00 | F8: 4.56 | G8: 4.44 | H8: 29.99 | I8: 0.68
B9: 136 | C9: Хлеб пшеничный | D9: 25.0 | E9: 49.22 | F9: 2.13 | G9: 0.40 | H9: 9.25 | I9: 0
B10: 103 | C10: Апельсины свежие | D10: 268.0 | E10: 101.80 | F10: 2.41 | G10: 0.54 | H10: 21.71 | I10: 160.8
C11: Итого за завтрак | E11: =SUM(E5:E10) -> 631.02 | F11: =SUM(F5:F10) -> 20.36 | G11: =SUM(G5:G10) -> 21.46 | H11: =SUM(H5:H10) -> 89.32 | I11: =SUM(I5:I10) -> 162.25
A12: Обед | B12: 16 | C12: Икра свекольная | D12: 60.0 | E12: 76.00 | F12: 0.78 | G12: 6.05 | H12: 4.63 | I12: 3.42
B13: 129 | C13: Щи из свежей капусты на м/к бульоне со сметаной | D13: 200.0 | E13: 113.00 | F13: 5.13 | G13: 7.00 | H13: 7.41 | I13: 10.33
B14: 59 | C14: Картофельное пюре | D14: 150.0 | E14: 145.00 | F14: 3.01 | G14: 5.33 | H14: 21.20 | I14: 6.41
B15: 151 | C15: Рыба, припущенная в молоке | D15: 110.0 | E15: 150.00 | F15: 16.01 | G15: 8.10 | H15: 3.30 | I15: 1.45
B16: 153 | C16: Сок натуральный | D16: 206.0 | E16: 87.60 | F16: 0.77 | H16: 21.19 | I16: 1.65
B17: 135 | C17: Хлеб ржаной порциями | D17: 30.0 | E17: 52.10 | F17: 1.98 | G17: 0.36 | H17: 10.30 | I17: 0
B18: 136 | C18: Хлеб пшеничный порциями | D18: 25.0 | E18: 49.22 | F18: 2.13 | G18: 0.40 | H18: 9.25 | I18: 0
B19: 145 | C19: Вафли | D19: 25.8 | E19: 90.30 | F19: 0.82 | G19: 0.72 | H19: 20.67 | I19: 0
C20: Итого за обед | E20: =SUM(E12:E19) -> 763.22 | F20: =SUM(F12:F19) -> 30.63 | G20: =SUM(G12:G19) -> 27.96 | H20: =SUM(H12:H19) -> 97.95 | I20: =SUM(I12:I19) -> 23.26
A21: Полдник | B21: 160.159 | C21: Творожная запеканка с молоком сгущеным | D21: 170.0 | E21: 250.00 | F21: 18.40 | G21: 12.14 | H21: 16.89 | I21: 0.35
B22: 83 | C22: Молоко кипяченое | D22: 200.0 | E22: 117.00 | F22: 5.59 | G22: 6.38 | H22: 9.38 | I22: 0.5
C23: Итого за полдник | E23: =SUM(E21:E22) -> 367.00 | F23: =SUM(F21:F22) -> 23.99 | G23: =SUM(G21:G22) -> 18.52 | H23: =SUM(H21:H22) -> 26.27 | I23: =SUM(I21:I22) -> 0.85
A24: Ужин | B24: 72 | C24: Салат "Степной" | D24: 60.0 | E24: 84.00 | F24: 3.35 | G24: 4.57 | H24: 7.40 | I24: 3.91
B25: 67 | C25: Плов из отварной говядины | D25: 200.0 | E25: 388.00 | F25: 22.95 | G25: 19.73 | H25: 29.57 | I25: 2.03
B26: 204 | C26: Чай с сахаром | D26: 200.0 | E26: 41.00 | H26: 10.26 | I26: 0
B27: 135 | C27: Хлеб ржаной | D27: 31.8 | E27: 55.20 | F27: 2.10 | G27: 0.39 | H27: 10.84 | I27: 0
B28: 136 | C28: Хлеб пшеничный | D28: 25.0 | E28: 49.22 | F28: 2.13 | G28: 0.40 | H28: 9.25 | I28: 0
C29: Итого за ужин | E29: =E24+E25+E26+E27+E28 -> 617.42 | F29: =F24+F25+F26+F27+F28 -> 30.53 | G29: =G24+G25+G26+G27+G28 -> 25.09 | H29: =H24+H25+H26+H27+H28 -> 67.32 | I29: =I24+I25+I26+I27+I28 -> 5.94
A30: 2-й Ужин | B30: 85 | C30: Ряженка с сахаром | D30: 210.0 | E30: 173.00 | F30: 5.60 | G30: 6.40 | H30: 23.17 | I30: 1.4
B31: 136 | C31: Хлеб пшеничный порциями | D31: 25.0 | E31: 49.22 | F31: 2.13 | G31: 0.40 | H31: 9.25 | I31: 0
C32: Итого за ужин | E32: =SUM(E30:E31) -> 222.22 | F32: =SUM(F30:F31) -> 7.73 | G32: =SUM(G30:G31) -> 6.80 | H32: =SUM(H30:H31) -> 32.42 | I32: =SUM(I30:I31) -> 1.40
C33: Всего за день | E33: =E11+E20+E23+E29+E32 -> 2600.88 | F33: =F11+F20+F23+F29+F32 -> 113.24 | G33: =G11+G20+G23+G29+G32 -> 99.83 | H33: =H11+H20+H23+H29+H32 -> 313.28 | I33: =I11+I20+I23+I29+I32 -> 193.70

Sheet день8
A1: Прием | B1: № | C1: Наименование блюда | D1: Масса | E1: Энергетичес- | G1: Пищевые | I1: Витамин
A2: пищи | B2: рецептуры | D2: порции, | E2: кая ценность, | F2: Белки, | G2: Жиры, | H2: Углеводы, | I2: С
D3: гр. | E3: (ккал) | F3: гр. | G3: гр. | H3: гр
D4: 8 день
A5: Завтрак | B5: 30 | C5: Каша молочная "Дружба" | D5: 206.0 | E5: 242.00 | F5: 6.58 | G5: 8.37 | H5: 35.26 | I5: 0.29
B6: 169 | C6: Сосиски отварные | D6: 50.0 | E6: 94.00 | F6: 4.57 | G6: 8.25 | H6: 0.35 | I6: 0.02
B7: 116 | C7: Сыр порциями | D7: 10.3 | E7: 35.00 | F7: 2.68 | G7: 2.73 | I7: 0.16
B8: 205 | C8: Какао с молоком | D8: 200.0 | E8: 178.00 | F8: 4.56 | G8: 4.44 | H8: 29.99 | I8: 0.68
B9: 136 | C9: Хлеб пшеничный | D9: 25.0 | E9: 49.22 | F9: 2.13 | G9: 0.40 | H9: 9.25 | I9: 0
B10: 102 | C10: Бананы свежие | D10: 251.0 | E10: 110.51 | F10: 1.00 | G10: 1.00 | H10: 24.59 | I10: 25.1
C11: Итого за завтрак | E11: =SUM(E5:E10) -> 708.73 | F11: =SUM(F5:F10) -> 21.52 | G11: =SUM(G5:G10) -> 25.19 | H11: =SUM(H5:H10) -> 99.44 | I11: =SUM(I5:I10) -> 26.25
A12: Обед | B12: 2 | C12: Салат из всеклы и яблок | D12: 60.0 | E12: 83.00 | F12: 0.68 | G12: 6.08 | H12: 6.42 | I12: 9.99
B13: 173 | C13: Суп с рыбой | D13: 200.0 | E13: 122.00 | F13: 8.38 | G13: 3.30 | H13: 14.58 | I13: 7.85
B14: 52 | C14: Каша гречневая рассыпчатая | D14: 150.0 | E14: 264.00 | F14: 8.73 | G14: 5.43 | H14: 45.00 | I14: 0.2
B15: 62 | C15: Гуляш из говядины | D15: 80.0 | E15: 188.00 | F15: 13.59 | G15: 13.41 | H15: 3.15 | I15: 1.34
B16: 87 | C16: Кисель | D16: 200.0 | E16: 36.00 | H16: 9.08 | I16: 0
B17: 135 | C17: Хлеб ржаной порциями | D17: 30.0 | E17: 52.10 | F17: 1.98 | G17: 0.36 | H17: 10.30 | I17: 0
B18: 136 | C18: Хлеб пшеничный порциями | D18: 25.0 | E18: 49.22 | F18: 2.13 | G18: 0.40 | H18: 9.25 | I18: 0
B19: 143 | C19: Печенье | D19: 25.8 | E19: 112.50 | F19: 1.94 | G19: 3.04 | H19: 19.20 | I19: 0
C20: Итого за обед | E20: =SUM(E12:E19) -> 906.82 | F20: =SUM(F12:F19) -> 37.43 | G20: =SUM(G12:G19) -> 32.02 | H20: =SUM(H12:H19) -> 116.98 | I20: =SUM(I12:I19) -> 19.38
A21: Полдник | B21: 171, 159 | C21: Оладьи с молоком сгущенным | D21: 120.0 | E21: 306.00 | F21: 7.37 | G21: 12.58 | H21: 40.94 | I21: 0.18
B22: 153 | C22: Сок натуральный | D22: 206.0 | E22: 87.60 | F22: 0.77 | H22: 21.19 | I22: 1.65
C23: Итого за полдник | E23: =SUM(E21:E22) -> 393.60 | F23: =SUM(F21:F22) -> 8.14 | G23: =SUM(G21:G22) -> 12.58 | H23: =SUM(H21:H22) -> 62.13 | I23: =SUM(I21:I22) -> 1.83
A24: Ужин | B24: 20 | C24: Салат картофельный с огурцами солеными | D24: 60.0 | E24: 62.00 | F24: 0.96 | G24: 3.16 | H24: 7.61 | I24: 7.5
B25: 176 | C25: Рагу из овощей | D25: 150.0 | E25: 188.00 | F25: 3.49 | G25: 12.03 | H25: 16.53 | I25: 13.61
B26: 66 | C26: Мясо тушенное | D26: 80.0 | E26: 172.00 | F26: 12.04 | G26: 12.88 | H26: 2.07 | I26: 0.9
B27: 204 | C27: Чай с сахаром | D27: 200.0 | E27: 41.00 | H27: 10.26 | I27: 0
B28: 135 | C28: Хлеб ржаной | D28: 31.8 | E28: 55.20 | F28: 2.10 | G28: 0.39 | H28: 10.84 | I28: 0
B29: 136 | C29: Хлеб пшеничный | D29: 25.0 | E29: 49.22 | F29: 2.13 | G29: 0.40 | H29: 9.25 | I29: 0
C30: Итого за ужин | E30: =SUM(E24:E29) -> 567.42 | F30: =SUM(F24:F29) -> 20.72 | G30: =SUM(G24:G29) -> 28.86 | H30: =SUM(H24:H29) -> 56.56 | I30: =SUM(I24:I29) -> 22.01
A31: 2-й Ужин | B31: 84 | C31: Кефир с сахаром | D31: 209.0 | E31: 173.00 | F31: 5.60 | G31: 6.40 | H31: 23.17 | I31: 1.4
B32: 136 | C32: Хлеб пшеничный порциями | D32: 25.0 | E32: 49.22 | F32: 2.13 | G32: 0.40 | H32: 9.25 | I32: 0
C33: Итого за ужин | E33: =E31+E32 -> 222.22 | F33: =F31+F32 -> 7.73 | G33: =G31+G32 -> 6.80 | H33: =H31+H32 -> 32.42 | I33: =I31+I32 -> 1.40
C34: Всего за день | E34: =E11+E20+E23+E30+E33 -> 2798.79 | F34: =F11+F20+F23+F30+F33 -> 95.54 | G34: =G11+G20+G23+G30+G33 -> 105.45 | H34: =H11+H20+H23+H30+H33 -> 367.53 | I34: =I11+I20+I23+I30+I33 -> 70.87

Sheet день9
A1: Прием | B1: № | C1: Наименование блюда | D1: Масса | E1: Энергетичес- | G1: Пищевые | I1: Витамин
A2: пищи | B2: рецептуры | D2: порции, | E2: кая ценность, | F2: Белки, | G2: Жиры, | H2: Углеводы, | I2: С
D3: гр. | E3: (ккал) | F3: гр. | G3: гр. | H3: гр
D5: 9 день
A6: Завтрак | B6: 185 | C6: Суп молочный с овсянными хлопьями | D6: 200.0 | E6: 135.00 | F6: 4.62 | G6: 5.45 | H6: 16.94 | I6: 0.73
B7: 39 | C7: Яйцо отварное | D7: 40.0 | E7: 57.00 | F7: 4.78 | G7: 4.05 | H7: 0.25 | I7: 0
B8: 115 | C8: Масло сливочное порциями | D8: 5.0 | E8: 35.00 | F8: 0.04 | G8: 3.90 | H8: 0.05 | I8: 0.14
B9: 205 | C9: Какао с молоком | D9: 200.0 | E9: 178.00 | F9: 4.56 | G9: 4.44 | H9: 29.99 | I9: 0.68
B10: 136 | C10: Хлеб пшеничный | D10: 25.0 | E10: 49.22 | F10: 2.13 | G10: 0.40 | H10: 9.25 | I10: 0
B11: 100 | C11: Яблоки свежие | D11: 268.0 | E11: 119.00 | F11: 1.07 | G11: 1.07 | H11: 26.26 | I11: 34.8
C12: Итого за завтрак | E12: =SUM(E6:E11) -> 573.22 | F12: =SUM(F6:F11) -> 17.20 | G12: =SUM(G6:G11) -> 19.31 | H12: =SUM(H6:H11) -> 82.74 | I12: =SUM(I6:I11) -> 36.35
A13: Обед | B13: 19 | C13: Салат картофельный с зеленым горошком | D13: 60.0 | E13: 94.00 | F13: 1.84 | G13: 6.83 | H13: 6.27 | I13: 6.72
B14: 22 | C14: Рассольник на м/к бульоне со сметаной | D14: 200.0 | E14: 136.00 | F14: 5.25 | G14: 7.14 | H14: 12.79 | I14: 5.37
B15: 58 | C15: Капуста тушенная | D15: 150.0 | E15: 127.00 | F15: 3.69 | G15: 4.27 | H15: 18.36 | I15: 71.32
B16: 163 | C16: Тефтели из говядины с рисом | D16: 115.0 | E16: 235.00 | F16: 10.42 | G16: 16.25 | H16: 11.82 | I16: 1.21
B17: 89 | C17: Компот из смеси сухофруктов | D17: 200.0 | E17: 54.00 | H17: 13.62 | I17: 0
B18: 135 | C18: Хлеб ржаной порциями | D18: 30.0 | E18: 52.10 | F18: 1.98 | G18: 0.36 | H18: 10.30 | I18: 0
B19: 136 | C19: Хлеб пшеничный порциями | D19: 25.0 | E19: 49.22 | F19: 2.13 | G19: 0.40 | H19: 9.25 | I19: 0
B20: 143 | C20: Печенье | D20: 25.8 | E20: 112.50 | F20: 1.94 | G20: 3.04 | H20: 19.20 | I20: 0
C21: Итого за обед | E21: =SUM(E13:E20) -> 859.82 | F21: =SUM(F13:F20) -> 27.25 | G21: =SUM(G13:G20) -> 38.29 | H21: =SUM(H13:H20) -> 101.61 | I21: =SUM(I13:I20) -> 84.62
A22: Полдник | B22: 105 | C22: Булочка домашняя | D22: 100.0 | E22: 393.00 | F22: 7.61 | G22: 12.73 | H22: 62.12 | I22: 0
B23: 153 | C23: Сок натуральный | D23: 206.0 | E23: 87.60 | F23: 0.77 | H23: 21.19 | I23: 1.65
C24: Итого за полдник | E24: =SUM(E22:E23) -> 480.60 | F24: =SUM(F22:F23) -> 8.38 | G24: =SUM(G22:G23) -> 12.73 | H24: =SUM(H22:H23) -> 83.31 | I24: =SUM(I22:I23) -> 1.65
A25: Ужин | B25: 7 | C25: Икра свекольная | D25: 60.0 | E25: 82.00 | F25: 0.68 | G25: 6.05 | H25: 6.23 | I25: 2.64
B26: 76 | C26: Азу | D26: 200.0 | E26: 226.00 | F26: 10.98 | G26: 13.47 | H26: 15.31 | I26: 8.06
B27: 98 | C27: Чай с сахаром и молоком | D27: 180.0 | E27: 80.00 | F27: 1.26 | G27: 1.44 | H27: 15.61 | I27: 0.5
B28: 135 | C28: Хлеб ржаной | D28: 31.8 | E28: 55.20 | F28: 2.10 | G28: 0.39 | H28: 10.84 | I28: 0
B29: 136 | C29: Хлеб пшеничный | D29: 25.0 | E29: 49.22 | F29: 2.13 | G29: 0.40 | H29: 9.25 | I29: 0
C30: Итого за ужин | E30: =SUM(E25:E29) -> 492.42 | F30: =SUM(F25:F29) -> 17.15 | G30: =SUM(G25:G29) -> 21.75 | H30: =SUM(H25:H29) -> 57.24 | I30: =SUM(I25:I29) -> 11.20
A31: 2-й Ужин | B31: 85 | C31: Ряженка с сахаром | D31: 210.0 | E31: 173.00 | F31: 5.60 | G31: 6.40 | H31: 23.17 | I31: 1.4
B32: 136 | C32: Хлеб пшеничный порциями | D32: 25.0 | E32: 49.22 | F32: 2.13 | G32: 0.40 | H32: 9.25 | I32: 0
C33: Итого за ужин | E33: =SUM(E31:E32) -> 222.22 | F33: =SUM(F31:F32) -> 7.73 | G33: =SUM(G31:G32) -> 6.80 | H33: =SUM(H31:H32) -> 32.42 | I33: =SUM(I31:I32) -> 1.40
C34: Всего за день | E34: =E12+E21+E24+E30+E33 -> 2628.28 | F34: =F12+F21+F24+F30+F33 -> 77.71 | G34: =G12+G21+G24+G30+G33 -> 98.88 | H34: =H12+H21+H24+H30+H33 -> 357.32 | I34: =I12+I21+I24+I30+I33 -> 135.22

Sheet день10
A1: Прием | B1: № | C1: Наименование блюда | D1: Масса | E1: Энергетичес- | G1: Пищевые | I1: Витамин
A2: пищи | B2: рецептуры | D2: порции, | E2: кая ценность, | F2: Белки, | G2: Жиры, | H2: Углеводы, | I2: С
D3: гр. | E3: (ккал) | F3: гр. | G3: гр. | H3: гр
D4: 10 день
A5: Завтрак | B5: 138 | C5: Суп молочный с крупой гречневой | D5: 200.0 | E5: 135.00 | F5: 4.62 | G5: 5.45 | H5: 16.94 | I5: 0.73
B6: 116 | C6: Сыр порциями | D6: 20.6 | E6: 70.00 | F6: 5.36 | G6: 5.46 | I6: 0.33
B7: 115 | C7: Масло сливочное порциями | D7: 5.0 | E7: 35.00 | F7: 0.04 | G7: 3.90 | H7: 0.05 | I7: 0.14
B8: 205 | C8: Какао с молоком | D8: 200.0 | E8: 178.00 | F8: 4.56 | G8: 4.44 | H8: 29.99 | I8: 0.68
B9: 136 | C9: Хлеб пшеничный | D9: 25.0 | E9: 49.22 | F9: 2.13 | G9: 0.40 | H9: 9.25 | I9: 0
B10: 103 | C10: Апельсины свежие | D10: 246.0 | E10: 101.80 | F10: 2.41 | G10: 0.54 | H10: 21.71 | I10: 160.8
C11: Итого за завтрак | E11: =SUM(E5:E10) -> 569.02 | F11: =SUM(F5:F10) -> 19.12 | G11: =SUM(G5:G10) -> 20.19 | H11: =SUM(H5:H10) -> 77.94 | I11: =SUM(I5:I10) -> 162.68
A12: Обед | B12: 16 | C12: Салат из свеклы с солеными огурцами | D12: 60.0 | E12: 76.00 | F12: 0.78 | G12: 6.05 | H12: 4.63 | I12: 3.42
B13: 26 | C13: Суп картофельный с мясными фрикадельками | D13: 200.0 | E13: 123.00 | F13: 6.66 | G13: 5.63 | H13: 11.39 | I13: 6
B14: 130 | C14: Пюре из гороха | D14: 150.0 | E14: 232.20 | F14: 17.25 | G14: 1.20 | H14: 38.10 | I14: 0.02
B15: 62 | C15: Гуляш из говядины | D15: 80.0 | E15: 188.00 | F15: 13.59 | G15: 13.41 | H15: 3.15 | I15: 1.34
B16: 87 | C16: Кисель | D16: 200.0 | E16: 36.00 | H16: 9.08 | I16: 0
B17: 135 | C17: Хлеб ржаной порциями | D17: 30.0 | E17: 52.10 | F17: 1.98 | G17: 0.36 | H17: 10.30 | I17: 0
B18: 136 | C18: Хлеб пшеничный порциями | D18: 25.0 | E18: 49.22 | F18: 2.13 | G18: 0.40 | H18: 9.25 | I18: 0
B19: 145 | C19: Вафли | D19: 25.8 | E19: 90.30 | F19: 0.82 | G19: 0.72 | H19: 20.67 | I19: 0
C20: Итого за обед | E20: =SUM(E12:E19) -> 846.82 | F20: =SUM(F12:F19) -> 43.21 | G20: =SUM(G12:G19) -> 27.77 | H20: =SUM(H12:H19) -> 106.57 | I20: =SUM(I12:I19) -> 10.78
A21: Полдник | B21: 45, 159 | C21: Сырники из творога запеченные с молоком сгущенным | D21: 100,0 / 20,0 | E21: 181.00 | F21: 14.46 | G21: 3.74 | H21: 22.49 | I21: 0.29
B22: 153 | C22: Сок натуральный | D22: 206.0 | E22: 87.60 | F22: 0.77 | H22: 21.19 | I22: 1.65
C23: Итого за полдник | E23: =SUM(E21:E22) -> 268.60 | F23: =SUM(F21:F22) -> 15.23 | G23: =SUM(G21:G22) -> 3.74 | H23: =SUM(H21:H22) -> 43.68 | I23: =SUM(I21:I22) -> 1.94
A24: Ужин | B24: 18 | C24: Овощи тушеные | D24: 60.0 | E24: 59.00 | F24: 0.68 | G24: 3.10 | H24: 7.03 | I24: 1.6
B25: 56 | C25: Макаронные изделия отварные | D25: 150.0 | E25: 218.00 | F25: 6.18 | G25: 5.65 | H25: 35.62 | I25: 0.05
B26: 162 | C26: Котлеты рыбные | D26: 80.0 | E26: 118.00 | F26: 10.93 | G26: 5.92 | H26: 5.21 | I26: 0.3
B27: 204 | C27: Чай с сахаром | D27: 200.0 | E27: 41.00 | H27: 10.26 | I27: 0
B28: 135 | C28: Хлеб ржаной | D28: 31.8 | E28: 55.20 | F28: 2.10 | G28: 0.39 | H28: 10.84 | I28: 0
B29: 136 | C29: Хлеб пшеничный | D29: 25.0 | E29: 49.22 | F29: 2.13 | G29: 0.40 | H29: 9.25 | I29: 0
C30: Итого за ужин | E30: =SUM(E24:E29) -> 540.42 | F30: =SUM(F24:F29) -> 22.02 | G30: =SUM(G24:G29) -> 15.46 | H30: =SUM(H24:H29) -> 78.21 | I30: =SUM(I24:I29) -> 1.95
A31: 2-й Ужин | B31: 84 | C31: Кефир с сахаром | D31: 209.0 | E31: 173.00 | F31: 5.60 | G31: 6.40 | H31: 23.17 | I31: 1.4
B32: 136 | C32: Хлеб пшеничный порциями | D32: 25.0 | E32: 49.22 | F32: 2.13 | G32: 0.40 | H32: 9.25 | I32: 0
C33: Итого за ужин | E33: =SUM(E31:E32) -> 222.22 | F33: =SUM(F31:F32) -> 7.73 | G33: =SUM(G31:G32) -> 6.80 | H33: =SUM(H31:H32) -> 32.42 | I33: =SUM(I31:I32) -> 1.40
C34: Всего за день | E34: =E11+E20+E23+E30+E33 -> 2447.08 | F34: =F11+F20+F23+F30+F33 -> 107.31 | G34: =G11+G20+G23+G30+G33 -> 73.96 | H34: =H11+H20+H23+H30+H33 -> 338.82 | I34: =I11+I20+I23+I30+I33 -> 178.75

Sheet день11
A1: Прием | B1: № | C1: Наименование блюда | D1: Масса | E1: Энергетичес- | G1: Пищевые | I1: Витамин
A2: пищи | B2: рецептуры | D2: порции, | E2: кая ценность, | F2: Белки, | G2: Жиры, | H2: Углеводы, | I2: С
D3: гр. | E3: (ккал) | F3: гр. | G3: гр. | H3: гр
D4: 11 день
A5: Завтрак | B5: 186 | C5: Суп молочный с пшеничной крупой | D5: 200.0 | E5: 135.00 | F5: 4.62 | G5: 5.45 | H5: 16.94 | I5: 0.73
B6: 115 | C6: Масло сливочное порциями | D6: 5.0 | E6: 35.00 | F6: 0.04 | G6: 3.90 | H6: 0.05 | I6: 0.14
B7: 169 | C7: Сосиски отварные | D7: 50.0 | E7: 94.00 | F7: 4.57 | G7: 8.25 | H7: 0.35 | I7: 0.02
B8: 205 | C8: Какао с молоком | D8: 200.0 | E8: 178.00 | F8: 4.56 | G8: 4.44 | H8: 29.99 | I8: 0.68
B9: 136 | C9: Хлеб пшеничный | D9: 25.0 | E9: 49.22 | F9: 2.13 | G9: 0.40 | H9: 9.25 | I9: 0
B10: 101 | C10: Груши свежие | D10: 268.0 | E10: 119.00 | F10: 1.07 | G10: 1.07 | H10: 26.25 | I10: 13.4
C11: Итого за завтрак | E11: =SUM(E5:E10) -> 610.22 | F11: =SUM(F5:F10) -> 16.99 | G11: =SUM(G5:G10) -> 23.51 | H11: =SUM(H5:H10) -> 82.83 | I11: =SUM(I5:I10) -> 14.97
A12: Обед | B12: 1 | C12: Винегрет овощной | D12: 60.0 | E12: 76.00 | F12: 0.75 | G12: 6.08 | H12: 4.51 | I12: 1.41
B13: 24 | C13: Суп на м/к бульоне с клецками | D13: 200.0 | E13: 114.00 | F13: 5.62 | G13: 5.32 | H13: 10.86 | I13: 3.28
B14: 176 | C14: Рагу из овощей | D14: 150.0 | E14: 188.00 | F14: 3.49 | G14: 12.03 | H14: 16.53 | I14: 13.61
B15: 134 | C15: Куры отварные | D15: 80.0 | E15: 235.00 | F15: 13.58 | G15: 17.65 | H15: 5.54 | I15: 0.8
B16: 89 | C16: Компот из смеси сухофруктов | D16: 200.0 | E16: 54.00 | H16: 13.62 | I16: 0
B17: 135 | C17: Хлеб ржаной порциями | D17: 30.0 | E17: 52.10 | F17: 1.98 | G17: 0.36 | H17: 10.30 | I17: 0
B18: 136 | C18: Хлеб пшеничный порциями | D18: 25.0 | E18: 49.22 | F18: 2.13 | G18: 0.40 | H18: 9.25 | I18: 0
B19: 144 | C19: Пряники | D19: 25.8 | E19: 90.30 | F19: 1.23 | G19: 0.72 | H19: 20.05 | I19: 0
C20: Итого за обед | E20: =SUM(E12:E19) -> 858.62 | F20: =SUM(F12:F19) -> 28.78 | G20: =SUM(G12:G19) -> 42.56 | H20: =SUM(H12:H19) -> 90.66 | I20: =SUM(I12:I19) -> 19.10
A21: Полдник | B21: 172, 157 | C21: Оладьи с повидлом | D21: 120.0 | E21: 306.00 | F21: 7.37 | G21: 12.58 | H21: 40.94 | I21: 0.18
B22: 153 | C22: Сок натуральный | D22: 206.0 | E22: 87.60 | F22: 0.77 | H22: 21.19 | I22: 1.65
C23: Итого за полдник | E23: =SUM(E21:E22) -> 393.60 | F23: =SUM(F21:F22) -> 8.14 | G23: =SUM(G21:G22) -> 12.58 | H23: =SUM(H21:H22) -> 62.13 | I23: =SUM(I21:I22) -> 1.83
A24: Ужин | B24: 7 | C24: Салат картофельный с зеленым горошком | D24: 60.0 | E24: 82.00 | F24: 0.68 | G24: 6.05 | H24: 6.23 | I24: 2.64
B25: 67 | C25: Плов из отварной говядины | D25: 200.0 | E25: 388.00 | F25: 22.95 | G25: 19.73 | H25: 29.57 | I25: 2.03
B26: 204 | C26: Чай с сахаром | D26: 200.0 | E26: 41.00 | H26: 10.26 | I26: 0
B27: 135 | C27: Хлеб ржаной | D27: 31.8 | E27: 55.20 | F27: 2.10 | G27: 0.39 | H27: 10.84 | I27: 0
B28: 136 | C28: Хлеб пшеничный | D28: 25.0 | E28: 49.22 | F28: 2.13 | G28: 0.40 | H28: 9.25 | I28: 0
C29: Итого за ужин | E29: =SUM(E24:E28) -> 615.42 | F29: =SUM(F24:F28) -> 27.86 | G29: =SUM(G24:G28) -> 26.57 | H29: =SUM(H24:H28) -> 66.15 | I29: =SUM(I24:I28) -> 4.67
A30: 2-й Ужин | B30: 85 | C30: Ряженка с сахаром | D30: 210.0 | E30: 173.00 | F30: 5.60 | G30: 6.40 | H30: 23.17 | I30: 1.4
B31: 136 | C31: Хлеб пшеничный порциями | D31: 25.0 | E31: 49.22 | F31: 2.13 | G31: 0.40 | H31: 9.25 | I31: 0
C32: Итого за ужин | E32: =E30+E31 -> 222.22 | F32: =F30+F31 -> 7.73 | G32: =G30+G31 -> 6.80 | H32: =H30+H31 -> 32.42 | I32: =I30+I31 -> 1.40
C33: Всего за день | E33: =E11+E20+E23+E29+E32 -> 2700.08 | F33: =F11+F20+F23+F29+F32 -> 89.50 | G33: =G11+G20+G23+G29+G32 -> 112.02 | H33: =H11+H20+H23+H29+H32 -> 334.19 | I33: =I11+I20+I23+I29+I32 -> 41.97

Sheet день12
A1: Прием | B1: № | C1: Наименование блюда | D1: Масса | E1: Энергетичес- | G1: Пищевые | I1: Витамин
A2: пищи | B2: рецептуры | D2: порции, | E2: кая ценность, | F2: Белки, | G2: Жиры, | H2: Углеводы, | I2: С
D3: гр. | E3: (ккал) | F3: гр. | G3: гр. | H3: гр
D5: 12 день
A6: Завтрак | B6: 160, 159 | C6: Творожная запеканка с молоком сгущенным | D6: 170.0 | E6: 250.00 | F6: 18.40 | G6: 12.14 | H6: 16.89 | I6: 0.35
B7: 116 | C7: Сыр порциями | D7: 10.3 | E7: 35.00 | F7: 2.68 | G7: 2.73 | I7: 0.16
B8: 115 | C8: Масло сливочное порциями | D8: 5.0 | E8: 35.00 | F8: 0.04 | G8: 3.90 | H8: 0.05 | I8: 0.14
B9: 39 | C9: Яйцо отварное | D9: 40.0 | E9: 57.00 | F9: 4.78 | G9: 4.05 | H9: 0.25 | I9: 0
B10: 205 | C10: Какао с молоком | D10: 200.0 | E10: 178.00 | F10: 4.56 | G10: 4.44 | H10: 29.99 | I10: 0.68
B11: 136 | C11: Хлеб пшеничный | D11: 25.0 | E11: 49.22 | F11: 2.13 | G11: 0.40 | H11: 9.25 | I11: 0
B12: 100 | C12: Яблоки свежие | D12: 242.0 | E12: 119.00 | F12: 1.07 | G12: 1.07 | H12: 26.26 | I12: 34.8
C13: Итого за завтрак | E13: =SUM(E6:E12) -> 723.22 | F13: =SUM(F6:F12) -> 33.66 | G13: =SUM(G6:G12) -> 28.73 | H13: =SUM(H6:H12) -> 82.69 | I13: =SUM(I6:I12) -> 36.13
A14: Обед | B14: 15 | C14: Салат из свеклы отварной | D14: 60.0 | E14: 45.00 | F14: 0.86 | G14: 3.05 | H14: 5.70 | I14: 1.42
B15: 191 | C15: Суп на м/к бульоне с вермишелью | D15: 200.0 | E15: 134.00 | F15: 5.97 | G15: 5.46 | H15: 15.20 | I15: 5.28
B16: 63 | C16: Жаркое по домашнему | D16: 200.0 | E16: 320.00 | F16: 20.03 | G16: 18.96 | H16: 17.25 | I16: 21.37
B17: 87 | C17: Кисель | D17: 200.0 | E17: 36.00 | H17: 9.08 | I17: 0
B18: 135 | C18: Хлеб ржаной порциями | D18: 30.0 | E18: 52.10 | F18: 1.98 | G18: 0.36 | H18: 10.30 | I18: 0
B19: 136 | C19: Хлеб пшеничный порциями | D19: 25.0 | E19: 49.22 | F19: 2.13 | G19: 0.40 | H19: 9.25 | I19: 0
B20: 143 | C20: Печенье | D20: 25.8 | E20: 112.50 | F20: 1.94 | G20: 3.04 | H20: 19.20 | I20: 0
C21: Итого за обед | E21: =SUM(E14:E20) -> 748.82 | F21: =SUM(F14:F20) -> 32.91 | G21: =SUM(G14:G20) -> 31.27 | H21: =SUM(H14:H20) -> 85.98 | I21: =SUM(I14:I20) -> 28.07
A22: Полдник | B22: 109 | C22: Слойка | D22: 100.0 | E22: 358.00 | F22: 7.75 | G22: 8.76 | H22: 62.05 | I22: 0.08
B23: 153 | C23: Сок натуральный | D23: 206.0 | E23: 87.60 | F23: 0.77 | H23: 21.19 | I23: 1.65
C24: Итого за полдник | E24: =SUM(E22:E23) -> 445.60 | F24: =SUM(F22:F23) -> 8.52 | G24: =SUM(G22:G23) -> 8.76 | H24: =SUM(H22:H23) -> 83.24 | I24: =SUM(I22:I23) -> 1.73
A25: Ужин | B25: 9 | C25: Салат картофельный с огурцами солеными | D25: 60.0 | E25: 77.00 | F25: 0.54 | G25: 6.10 | H25: 4.94 | I25: 10.24
B26: 52 | C26: Каша гречневая рассыпчатая | D26: 150.0 | E26: 264.00 | F26: 8.73 | G26: 5.43 | H26: 45.00 | I26: 0.2
B27: 134 | C27: Куры отварные | D27: 80.0 | E27: 235.00 | F27: 13.58 | G27: 17.65 | H27: 5.54 | I27: 0.8
B28: 204 | C28: Чай с сахаром | D28: 200.0 | E28: 41.00 | H28: 10.26 | I28: 0
B29: 135 | C29: Хлеб ржаной | D29: 31.8 | E29: 55.20 | F29: 2.10 | G29: 0.39 | H29: 10.84 | I29: 0
B30: 136 | C30: Хлеб пшеничный | D30: 25.0 | E30: 49.22 | F30: 2.13 | G30: 0.40 | H30: 9.25 | I30: 0
C31: Итого за ужин | E31: =SUM(E25:E30) -> 721.42 | F31: =SUM(F25:F30) -> 27.08 | G31: =SUM(G25:G30) -> 29.97 | H31: =SUM(H25:H30) -> 85.83 | I31: =SUM(I25:I30) -> 11.24
A32: 2-й Ужин | B32: 84 | C32: Кефир с сахаром | D32: 209.0 | E32: 173.00 | F32: 5.60 | G32: 6.40 | H32: 23.17 | I32: 1.4
B33: 136 | C33: Хлеб пшеничный порциями | D33: 25.0 | E33: 49.22 | F33: 2.13 | G33: 0.40 | H33: 9.25 | I33: 0
C34: Итого за ужин | E34: =E32+E33 -> 222.22 | F34: =F32+F33 -> 7.73 | G34: =G32+G33 -> 6.80 | H34: =H32+H33 -> 32.42 | I34: =I32+I33 -> 1.40
C35: Всего за день | E35: =E13+E21+E24+E31+E34 -> 2861.28 | F35: =F13+F21+F24+F31+F34 -> 109.90 | G35: =G13+G21+G24+G31+G34 -> 105.53 | H35: =H13+H21+H24+H31+H34 -> 370.16 | I35: =I13+I21+I24+I31+I34 -> 78.57

Sheet день13
A1: Прием | B1: № | C1: Наименование блюда | D1: Масса | E1: Энергетичес- | G1: Пищевые | I1: Витамин
A2: пищи | B2: рецептуры | D2: порции, | E2: кая ценность, | F2: Белки, | G2: Жиры, | H2: Углеводы, | I2: С
D3: гр. | E3: (ккал) | F3: гр. | G3: гр. | H3: гр
D4: 13 день
A5: Завтрак | B5: 170 | C5: Суп молочный с вермишелью | D5: 200.0 | E5: 142.00 | F5: 5.26 | G5: 5.46 | H5: 17.99 | I5: 0.73
B6: 116 | C6: Сыр порциями | D6: 10.3 | E6: 35.00 | F6: 2.68 | G6: 2.73 | I6: 0.16
B7: 115 | C7: Масло сливочное порциями | D7: 5.0 | E7: 35.00 | F7: 0.04 | G7: 3.90 | H7: 0.05 | I7: 0.14
B8: 205 | C8: Какао с молоком | D8: 200.0 | E8: 178.00 | F8: 4.56 | G8: 4.44 | H8: 29.99 | I8: 0.68
B9: 136 | C9: Хлеб пшеничный | D9: 25.0 | E9: 49.22 | F9: 2.13 | G9: 0.40 | H9: 9.25 | I9: 0
B10: 103 | C10: Апельсины свежие | D10: 251.0 | E10: 101.80 | F10: 2.41 | G10: 0.54 | H10: 21.71 | I10: 160.8
C11: Итого за завтрак | E11: =SUM(E5:E10) -> 541.02 | F11: =SUM(F5:F10) -> 17.08 | G11: =SUM(G5:G10) -> 17.47 | H11: =SUM(H5:H10) -> 78.99 | I11: =SUM(I5:I10) -> 162.51
A12: Обед | B12: 2 | C12: Капуста тушеная | D12: 60.0 | E12: 83.00 | F12: 0.68 | G12: 6.08 | H12: 6.42 | I12: 9.99
B13: 21 | C13: Борщ на м/к бульоне со сметаной | D13: 200.0 | E13: 116.00 | F13: 5.23 | G13: 6.72 | H13: 8.63 | I13: 5.77
B14: 59 | C14: Картофельное пюре | D14: 150.0 | E14: 145.00 | F14: 3.01 | G14: 5.33 | H14: 21.20 | I14: 6.41
B15: 151 | C15: Рыба, припущенная в молоке | D15: 110.0 | E15: 150.00 | F15: 16.01 | G15: 8.10 | H15: 3.30 | I15: 1.45
B16: 89 | C16: Компот из смеси сухофруктов | D16: 200.0 | E16: 54.00 | H16: 13.62 | I16: 0
B17: 135 | C17: Хлеб ржаной порциями | D17: 30.0 | E17: 52.10 | F17: 1.98 | G17: 0.36 | H17: 10.30 | I17: 0
B18: 136 | C18: Хлеб пшеничный порциями | D18: 25.0 | E18: 49.22 | F18: 2.13 | G18: 0.40 | H18: 9.25 | I18: 0
B19: 144 | C19: Пряники | D19: 25.8 | E19: 90.30 | F19: 1.23 | G19: 0.72 | H19: 20.05 | I19: 0
C20: Итого за обед | E20: =SUM(E12:E19) -> 739.62 | F20: =SUM(F12:F19) -> 30.27 | G20: =SUM(G12:G19) -> 27.71 | H20: =SUM(H12:H19) -> 92.77 | I20: =SUM(I12:I19) -> 23.62
A21: Полдник | B21: 184, 159 | C21: Пудинг из творога с молоком сгущенным | D21: 120.0 | E21: 223.86 | F21: 13.56 | G21: 8.54 | H21: 23.25 | I21: 0.15
B22: 153 | C22: Сок натуральный | D22: 206.0 | E22: 87.60 | F22: 0.77 | H22: 21.19 | I22: 1.65
C23: Итого за полдник | E23: =SUM(E21:E22) -> 311.46 | F23: =SUM(F21:F22) -> 14.33 | G23: =SUM(G21:G22) -> 8.54 | H23: =SUM(H21:H22) -> 44.44 | I23: =SUM(I21:I22) -> 1.80
A24: Ужин | B24: 72 | C24: Салат "Степной" | D24: 60.0 | E24: 84.00 | F24: 3.35 | G24: 4.57 | H24: 7.40 | I24: 3.91
B25: 176 | C25: Рагу из овощей | D25: 150.0 | E25: 188.00 | F25: 3.49 | G25: 12.03 | H25: 16.53 | I25: 13.61
B26: 203 | C26: Куры в соусе с томатом | D26: 80.0 | E26: 320.00 | F26: 21.57 | G26: 24.59 | H26: 3.13 | I26: 0.95
B27: 204 | C27: Чай с сахаром | D27: 200.0 | E27: 41.00 | H27: 10.26 | I27: 0
B28: 135 | C28: Хлеб ржаной | D28: 31.8 | E28: 55.20 | F28: 2.10 | G28: 0.39 | H28: 10.84 | I28: 0
B29: 136 | C29: Хлеб пшеничный | D29: 25.0 | E29: 49.22 | F29: 2.13 | G29: 0.40 | H29: 9.25 | I29: 0
C30: Итого за ужин | E30: =SUM(E24:E29) -> 737.42 | F30: =SUM(F24:F29) -> 32.64 | G30: =SUM(G24:G29) -> 41.98 | H30: =SUM(H24:H29) -> 57.41 | I30: =SUM(I24:I29) -> 18.47
A31: 2-й Ужин | B31: 85 | C31: Ряженка с сахаром | D31: 210.0 | E31: 173.00 | F31: 5.60 | G31: 6.40 | H31: 23.17 | I31: 1.4
B32: 136 | C32: Хлеб пшеничный порциями | D32: 25.0 | E32: 49.22 | F32: 2.13 | G32: 0.40 | H32: 9.25 | I32: 0
C33: Итого за ужин | E33: =E31+E32 -> 222.22 | F33: =F31+F32 -> 7.73 | G33: =G31+G32 -> 6.80 | H33: =H31+H32 -> 32.42 | I33: =I31+I32 -> 1.40
C34: Всего за день | E34: =E11+E20+E23+E30+E33 -> 2551.74 | F34: =F11+F20+F23+F30+F33 -> 102.05 | G34: =G11+G20+G23+G30+G33 -> 102.50 | H34: =H11+H20+H23+H30+H33 -> 306.03 | I34: =I11+I20+I23+I30+I33 -> 207.80

Sheet день14
A1: Прием | B1: № | C1: Наименование блюда | D1: Масса | E1: Энергетичес- | G1: Пищевые | I1: Витамин
A2: пищи | B2: рецептуры | D2: порции, | E2: кая ценность, | F2: Белки, | G2: Жиры, | H2: Углеводы, | I2: С
D3: гр. | E3: (ккал) | F3: гр. | G3: гр. | H3: гр
D4: 14 день
A5: Завтрак | B5: 132 | C5: Омлет | D5: 115 | E5: 179.00 | F5: 9.67 | G5: 14.48 | H5: 2.44 | I5: 0.24
B6: 102 | C6: Бананы свежие | D6: 265.2 | E6: 90.70 | F6: 0.82 | G6: 0.82 | H6: 20.18 | I6: 20.6
B7: 116 | C7: Сыр порциями | D7: 10.3 | E7: 35.00 | F7: 2.68 | G7: 2.73 | I7: 0.16
B8: 115 | C8: Масло сливочное порциями | D8: 5.0 | E8: 35.00 | F8: 0.04 | G8: 3.90 | H8: 0.05 | I8: 0.14
B9: 205 | C9: Какао с молоком | D9: 200.0 | E9: 178.00 | F9: 4.56 | G9: 4.44 | H9: 29.99 | I9: 0.68
B10: 136 | C10: Хлеб пшеничный | D10: 25.0 | E10: 49.22 | F10: 2.13 | G10: 0.40 | H10: 9.25 | I10: 0
C11: Итого за завтрак | E11: =SUM(E5:E10) -> 566.92 | F11: =SUM(F5:F10) -> 19.90 | G11: =SUM(G5:G10) -> 26.77 | H11: =SUM(H5:H10) -> 61.91 | I11: =SUM(I5:I10) -> 21.82
A12: Обед | B12: 19 | C12: Салат картофельный с зеленым горошком | D12: 60.0 | E12: 94.00 | F12: 1.84 | G12: 6.83 | H12: 6.27 | I12: 6.72
B13: 126 | C13: Суп на м/к бульоне с гречневой крупой | D13: 200.0 | E13: 112.00 | F13: 4.66 | G13: 6.40 | H13: 9.00 | I13: 2.08
B14: 58 | C14: Капуста тушенная | D14: 150.0 | E14: 127.00 | F14: 3.69 | G14: 4.27 | H14: 18.36 | I14: 71.32
B15: 164 | C15: Котлеты из говядины | D15: 80.0 | E15: 235.00 | F15: 13.58 | G15: 17.65 | H15: 5.54 | I15: 0.09
B16: 153 | C16: Сок натуральный | D16: 206.0 | E16: 87.60 | F16: 0.77 | H16: 21.19 | I16: 1.65
B17: 135 | C17: Хлеб ржаной порциями | D17: 30.0 | E17: 52.10 | F17: 1.98 | G17: 0.36 | H17: 10.30 | I17: 0
B18: 136 | C18: Хлеб пшеничный порциями | D18: 25.0 | E18: 49.22 | F18: 2.13 | G18: 0.40 | H18: 9.25 | I18: 0
B19: 145 | C19: Вафли | D19: 25.8 | E19: 90.30 | F19: 0.82 | G19: 0.72 | H19: 20.67 | I19: 0
C20: Итого за обед | E20: =SUM(E12:E19) -> 847.22 | F20: =SUM(F12:F19) -> 29.47 | G20: =SUM(G12:G19) -> 36.63 | H20: =SUM(H12:H19) -> 100.58 | I20: =SUM(I12:I19) -> 81.86
A21: Полдник | B21: 107 | C21: Булочка российская | D21: 100.0 | E21: 345.00 | F21: 7.08 | G21: 4.83 | H21: 65.30 | I21: 0.09
B22: 83 | C22: Молоко кипяченое | D22: 200.0 | E22: 117.00 | F22: 5.59 | G22: 6.38 | H22: 9.38 | I22: 0.5
C23: Итого за полдник | D23: =SUM(D21:D22) -> 300.0 | E23: 462.00 | F23: 12.67 | G23: 11.21 | H23: 74.68 | I23: 0.59
A24: Ужин | B24: 4 | C24: Венегрет | D24: 60.0 | E24: 82.00 | F24: 0.99 | G24: 6.05 | H24: 5.79 | I24: 17.23
B25: 76 | C25: Азу | D25: 200.0 | E25: 226.00 | F25: 10.98 | G25: 13.47 | H25: 15.31 | I25: 8.06
B26: 98 | C26: Чай с сахаром и молоком | D26: 180.0 | E26: 80.00 | F26: 1.26 | G26: 1.44 | H26: 15.61 | I26: 0.5
B27: 135 | C27: Хлеб ржаной | D27: 31.8 | E27: 55.20 | F27: 2.10 | G27: 0.39 | H27: 10.84 | I27: 0
B28: 136 | C28: Хлеб пшеничный | D28: 25.0 | E28: 49.22 | F28: 2.13 | G28: 0.40 | H28: 9.25 | I28: 0
C29: Итого за ужин | E29: =SUM(E24:E28) -> 492.42 | F29: =SUM(F24:F28) -> 17.46 | G29: =SUM(G24:G28) -> 21.75 | H29: =SUM(H24:H28) -> 56.80 | I29: =SUM(I24:I28) -> 25.79
A30: 2-й Ужин | B30: 84 | C30: Кефир с сахаром | D30: 209.0 | E30: 173.00 | F30: 5.60 | G30: 6.40 | H30: 23.17 | I30: 1.4
B31: 136 | C31: Хлеб пшеничный порциями | D31: 25.0 | E31: 49.22 | F31: 2.13 | G31: 0.40 | H31: 9.25 | I31: 0
C32: Итого за ужин | E32: =SUM(E30) -> 173.00 | F32: =SUM(F30) -> 5.60 | G32: =SUM(G30) -> 6.40 | H32: =SUM(H30) -> 23.17 | I32: =SUM(I30) -> 1.40
C33: Всего за день | E33: =E11+E20+E23+E29+E32 -> 2541.56 | F33: =F11+F20+F23+F29+F32 -> 85.10 | G33: =G11+G20+G23+G29+G32 -> 102.76 | H33: =H11+H20+H23+H29+H32 -> 317.14 | I33: =I11+I20+I23+I29+I32 -> 131.46
